Workbook

Sheet Data summary
A1: RUN # 2 | B1: Rate classes | C1: Weather station used for normalization | H1: Test Year
A2: 1 | B2: Residential class | C2: Ottawa | H2: 2004
A3: 2 | B3: Streetlights
A4: 3 | B4: General service <50kW
A5: 4 | B5: General service >50kW
A9: Monthly kWh by class (with actual weather) | C9: Jan | D9: Feb | E9: Mar | F9: Apr | G9: May | H9: Jun | I9: Jul | J9: Aug | K9: Sep | L9: Oct | M9: Nov | N9: Dec | O9: TOTAL
A10: 1 | B10: Residential | C10: 2562930.94 | D10: 1935226.54 | E10: 1656173.68 | F10: 1408259.98 | G10: 1180818.21 | H10: 1242664.62 | I10: 1476130.89 | J10: 1361192.95 | K10: 1218258.89 | L10: 1395246.62 | M10: 1626527.77 | N10: 2400575.2 | O10: 19464006.29
A11: 2 | B11: GS>50kW | C11: 37977.37791 | D11: 30812.97925 | E11: 29489.11263 | F11: 25007.67621 | G11: 22737.98703 | H11: 20484.09273 | I11: 21982.00543 | J11: 25037.47896 | K11: 27651.91421 | L11: 32171.16974 | M11: 36455.92183 | N11: 49635.50971 | O11: 359443.2256
A12: 3 | B12: Street Lighting | C12: 525116.71 | D12: 473101.93 | E12: 479470.7 | F12: 386092.95 | G12: 416357.13 | H12: 379403.25 | I12: 442507.01 | J12: 436744.46 | K12: 398821.06 | L12: 362058.59 | M12: 421790.44 | N12: 474153.45 | O12: 5195617.68
A13: 4 | B13: GS<50kW | C13: 609279.36 | D13: 534573.35 | E13: 487723.43 | F13: 360556.42 | G13: 268802.4 | H13: 266992.97 | I13: 275865.84 | J13: 252624.43 | K13: 327372.42 | L13: 338479.18 | M13: 439992.52 | N13: 505846.71 | O13: 4668109.03
A17: Monthly kWh by class (with normalized weather) | C17: Jan | D17: Feb | E17: Mar | F17: Apr | G17: May | H17: Jun | I17: Jul | J17: Aug | K17: Sep | L17: Oct | M17: Nov | N17: Dec | O17: TOTAL
A18: 1 | B18: Residential | C18: 2365798.285 | D18: 1958802.526 | E18: 1745402.654 | F18: 1382395.171 | G18: 1202663.699 | H18: 1320434.124 | I18: 1497425.708 | J18: 1403475.619 | K18: 1241467.53 | L18: 1430590.551 | M18: 1656968.832 | N18: 2304655.107 | O18: 19510079.81
A19: 2 | B19: GS>50kW | C19: 37977.37791 | D19: 30812.97925 | E19: 29489.11263 | F19: 25007.67621 | G19: 22737.98703 | H19: 20484.09273 | I19: 21982.00543 | J19: 25037.47896 | K19: 27651.91421 | L19: 32171.16974 | M19: 36455.92183 | N19: 49635.50971 | O19: 359443.2256
A20: 3 | B20: Street Lighting | C20: 498472.1389 | D20: 476288.2451 | E20: 491530.9389 | F20: 382596.912 | G20: 420854.0353 | H20: 409150.5552 | I20: 450652.4163 | J20: 452918.8724 | K20: 405892.3073 | L20: 366835.6396 | M20: 425904.8725 | N20: 461187.8277 | O20: 5242284.761
A21: 4 | B21: GS<50kW | C21: 547619.5007 | D21: 541947.5314 | E21: 515632.7885 | F21: 352466.3324 | G21: 274735.7663 | H21: 280110.7067 | I21: 279457.734 | J21: 259756.4406 | K21: 332339.5283 | L21: 349534.1815 | M21: 449513.9847 | N21: 475844.4791 | O21: 4658958.974
A25: Residential class information | C25: Equipment saturation
B26: Electric space heating | C26: 0.3103957736
B27: Electric water heating | C27: 0.3424068768
B28: Air conditioning | C28: 0.3596419269
B29: Baseload | C29: 1
A32: General service >50kW | C32: 2004 kWh (Actual) | D32: 2004 kWh (Weather Corrected)
B33: Weather sensitive load | C33: 4554838.65 | D33: 4545688.594
B34: Non-weather sensitive load | C34: 113270.38 | D34: 113270.38
B35: TOTAL | C35: 4668109.03 | D35: 4658958.974

Sheet Hourly load shapes by class
A1: ALL UNITS IN GWh | K1: 2015 Load Shape
A2: Year | B2: Month | C2: Day | D2: Hour (EST) | E2: Residential | F2: GS>50kW | G2: Street Lighting | H2: GS<50kW | I2: TOTAL LDC sales | K2: =E2 -> Residential | L2: =F2 -> GS>50kW | M2: =G2 -> Street Lighting | N2: =H2 -> GS<50kW | O2: =I2 -> TOTAL LDC sales | R2: =E2 -> Residential | S2: =F2 -> GS>50kW | T2: Street Lighting | U2: GS<50kW | V2: TOTAL LDC sales
A3: 2004 | B3: 1 | C3: 1 | D3: 1 | E3: 0.002583334519 | F3: 0.0005912267031 | G3: 7.9037568e-05 | H3: 0.0006915518878 | I3: 0.003945150678 | K3: =E3*R$5 -> 0.002733410115 | L3: =F3*S$5 -> 0.0004420713054 | M3: =G3*T$5 -> 4.334756613e-05 | N3: =H3*U$5 -> 0.0006355183831 | O3: =SUM(K3:N3) -> 0.00385434737 | Q3: 2004 | R3: =SUM(E3:E8786)*1000000 -> 19510079.81 | S3: =SUM(F3:F8786)*1000000 -> 4658958.974 | T3: =SUM(G3:G8786)*1000000 -> 359443.2256 | U3: =SUM(H3:H8786)*1000000 -> 5242284.761 | V3: =SUM(R3:U3) -> 29770766.77
A4: 2004 | B4: 1 | C4: 1 | D4: 2 | E4: 0.002443453145 | F4: 0.0005815180302 | G4: 7.9037568e-05 | H4: 0.0007061407006 | I4: 0.003810149444 | K4: =E4*R$5 -> 0.002585402508 | L4: =F4*S$5 -> 0.0004348119484 | M4: =G4*T$5 -> 4.334756613e-05 | N4: =H4*V$5 -> 0.0006912207279 | O4: 0.00375478275 | Q4: 2018 Forecast | R4: 20643493.56 | S4: 3483591.09 | T4: 197133.9629 | U4: 4817524.75 | V4: =SUM(R4:U4) -> 29141743.36
A5: 2004 | B5: 1 | C5: 1 | D5: 3 | E5: 0.002443653557 | F5: 0.0005651815314 | G5: 7.9037568e-05 | H5: 0.0006961655787 | I5: 0.003784038235 | K5: 0.002585614562 | L5: 0.0004225968415 | M5: 4.334756613e-05 | N5: 0.0006814563692 | O5: 0.003733015339 | Q5: Scaling Factor | R5: =R4/R3 -> 1.058093753 | S5: =S4/S3 -> 0.7477187736 | T5: 0.5484425601 | U5: 0.9189742582 | V5: 0.9788711049
A6: 2004 | B6: 1 | C6: 1 | D6: 4 | E6: 0.00249927051 | F6: 0.0005621849338 | G6: 7.9037568e-05 | H6: 0.0006972122524 | I6: 0.003837705264 | K6: 0.002644462513 | L6: 0.0004203562293 | M6: 4.334756613e-05 | N6: 0.0006824809279 | O6: 0.003790647236
A7: 2004 | B7: 1 | C7: 1 | D7: 5 | E7: 0.002580422173 | F7: 0.0005524243986 | G7: 7.9037568e-05 | H7: 0.0006764881772 | I7: 0.003888372317 | K7: 0.00273032858 | L7: 0.0004130580938 | M7: 4.334756613e-05 | N7: 0.0006621947295 | O7: 0.00384892897
A8: 2004 | B8: 1 | C8: 1 | D8: 6 | E8: 0.002743624729 | F8: 0.0005818822662 | G8: 7.9037568e-05 | H8: 0.000705941036 | I8: 0.0041104856 | K8: 0.002903012186 | L8: 0.0004350842945 | M8: 4.334756613e-05 | N8: 0.0006910252819 | O8: 0.004072469328
A9: 2004 | B9: 1 | C9: 1 | D9: 7 | E9: 0.002931850433 | F9: 0.0006277660112 | G9: 7.9037568e-05 | H9: 0.000727389681 | I9: 0.004366043693 | K9: 0.003102172627 | L9: 0.000469392432 | M9: 4.334756613e-05 | N9: 0.0007120207408 | O9: 0.004326933366
A10: 2004 | B10: 1 | C10: 1 | D10: 8 | E10: 0.003020804786 | F10: 0.0006737977355 | G10: 7.245742703e-05 | H10: 0.0007477633517 | I10: 0.004514823301 | K10: 0.003196294673 | L10: 0.0005038112164 | M10: 3.973873678e-05 | N10: 0.0007319639383 | O10: 0.004471808564
A11: 2004 | B11: 1 | C11: 1 | D11: 9 | E11: 0.003143337297 | F11: 0.0006920106362 | G11: 0 | H11: 0.000722253484 | I11: 0.004557601418 | K11: 0.003325945557 | L11: 0.0005174293442 | M11: 0 | N11: 0.000706993066 | O11: 0.004550367967
A12: 2004 | B12: 1 | C12: 1 | D12: 10 | E12: 0.003268758856 | F12: 0.0007149335556 | G12: 0 | H12: 0.0007076881872 | I12: 0.004691380599 | K12: 0.003458653325 | L12: 0.0005345692414 | M12: 0 | N12: 0.0006927355177 | O12: 0.004685958084
A13: 2004 | B13: 1 | C13: 1 | D13: 11 | E13: 0.003281275227 | F13: 0.0007236650488 | G13: 0 | H13: 0.0007046623586 | I13: 0.004709602634 | K13: 0.003471896818 | L13: 0.0005410979428 | M13: 0 | N13: 0.0006897736216 | O13: 0.004702768382
A14: 2004 | B14: 1 | C14: 1 | D14: 12 | E14: 0.0031728857 | F14: 0.000745062244 | G14: 0 | H14: 0.0007126543434 | I14: 0.004630602288 | K14: 0.003357210537 | L14: 0.0005570970274 | M14: 0 | N14: 0.0006975967446 | O14: 0.004611904309
A15: 2004 | B15: 1 | C15: 1 | D15: 13 | E15: 0.003028648552 | F15: 0.0007527973639 | G15: 0 | H15: 0.0007411549365 | I15: 0.004522600852 | K15: 0.003204594111 | L15: 0.0005628807217 | M15: 0 | N15: 0.0007254951516 | O15: 0.004492969985
A16: 2004 | B16: 1 | C16: 1 | D16: 14 | E16: 0.002892584844 | F16: 0.0007783773116 | G16: 0 | H16: 0.0007599711529 | I16: 0.004430933309 | K16: 0.003060625953 | L16: 0.0005820073288 | M16: 0 | N16: 0.0007439138021 | O16: 0.004386547084
A17: 2004 | B17: 1 | C17: 1 | D17: 15 | E17: 0.003061010995 | F17: 0.000742358452 | G17: 0 | H17: 0.000664008829 | I17: 0.004467378276 | K17: 0.003238836611 | L17: 0.0005550753513 | M17: 0 | N17: 0.0006499790561 | O17: 0.004443891018
A18: 2004 | B18: 1 | C18: 1 | D18: 16 | E18: 0.003100774972 | F18: 0.0007664563328 | G18: 0 | H18: 0.0007362593518 | I18: 0.004603490657 | K18: 0.003280910627 | L18: 0.0005730937891 | M18: 0 | N18: 0.0007207030052 | O18: 0.004574707421
A19: 2004 | B19: 1 | C19: 1 | D19: 17 | E19: 0.003528252264 | F19: 0.0008568035877 | G19: 3.9518784e-06 | H19: 0.0009203788655 | I19: 0.005309386596 | K19: 0.003733221679 | L19: 0.0006406481278 | M19: 2.167378307e-06 | N19: 0.0009009322771 | O19: 0.005276969462
A20: 2004 | B20: 1 | C20: 1 | D20: 18 | E20: 0.00412067823 | F20: 0.000793866068 | G20: 7.9037568e-05 | H20: 0.0008165873386 | I20: 0.005810169204 | K20: 0.004360063892 | L20: 0.0005935885628 | M20: 4.334756613e-05 | N20: 0.0007993337504 | O20: 0.005796333771
A21: 2004 | B21: 1 | C21: 1 | D21: 19 | E21: 0.004091480884 | F21: 0.0007512661599 | G21: 7.9037568e-05 | H21: 0.0007582725554 | I21: 0.005680057168 | K21: 0.004329170363 | L21: 0.0005617358118 | M21: 4.334756613e-05 | N21: 0.0007422510941 | O21: 0.005676504835
A22: 2004 | B22: 1 | C22: 1 | D22: 20 | E22: 0.003986868375 | F22: 0.0007451254833 | G22: 7.9037568e-05 | H22: 0.0008059142304 | I22: 0.005616945657 | K22: 0.00421848052 | L22: 0.0005571443125 | M22: 4.334756613e-05 | N22: 0.0007888861532 | O22: 0.005607858552
A23: 2004 | B23: 1 | C23: 1 | D23: 21 | E23: 0.003868796264 | F23: 0.0007196567751 | G23: 7.9037568e-05 | H23: 0.0007993424244 | I23: 0.005466833031 | K23: 0.004093549157 | L23: 0.0005381008813 | M23: 4.334756613e-05 | N23: 0.0007824532021 | O23: 0.005457450807
A24: 2004 | B24: 1 | C24: 1 | D24: 22 | E24: 0.003636745724 | F24: 0.0007109288158 | G24: 7.9037568e-05 | H24: 0.0008130075086 | I24: 0.005239719616 | K24: 0.00384801793 | L24: 0.0005315748222 | M24: 4.334756613e-05 | N24: 0.0007958295583 | O24: 0.005218769877
A25: 2004 | B25: 1 | C25: 1 | D25: 23 | E25: 0.003331541822 | F25: 0.0006829492503 | G25: 7.9037568e-05 | H25: 0.0007777426683 | I25: 0.004871271309 | K25: 0.003525083589 | L25: 0.0005106539758 | M25: 4.334756613e-05 | N25: 0.0007613098251 | O25: 0.004840394956
A26: 2004 | B26: 1 | C26: 1 | D26: 24 | E26: 0.002738244257 | F26: 0.0006512409802 | G26: 7.9037568e-05 | H26: 0.0007787421626 | I26: 0.004247264968 | K26: 0.002897319142 | L26: 0.000486945107 | M26: 4.334756613e-05 | N26: 0.0007622882012 | O26: 0.004189900016
A27: 2004 | B27: 1 | C27: 2 | D27: 1 | E27: 0.002527450807 | F27: 0.0005862152938 | G27: 7.9037568e-05 | H27: 0.0006091090005 | I27: 0.003801812669 | K27: 0.002674279909 | L27: 0.0004383241805 | M27: 4.334756613e-05 | N27: 0.0005962392003 | O27: 0.003752190856
A28: 2004 | B28: 1 | C28: 2 | D28: 2 | E28: 0.002335765272 | F28: 0.0005791190568 | G28: 7.9037568e-05 | H28: 0.0006424964935 | I28: 0.003636418391 | K28: 0.002471458642 | L28: 0.0004330181909 | M28: 4.334756613e-05 | N28: 0.0006289212525 | O28: 0.003576745652
A29: 2004 | B29: 1 | C29: 2 | D29: 3 | E29: 0.002321729367 | F29: 0.0005504752306 | G29: 7.9037568e-05 | H29: 0.0005951758509 | I29: 0.003546418017 | K29: 0.002456607339 | L29: 0.0004116006643 | M29: 4.334756613e-05 | N29: 0.0005826004428 | O29: 0.003494156012
A30: 2004 | B30: 1 | C30: 2 | D30: 4 | E30: 0.002341351241 | F30: 0.0005310737087 | G30: 7.9037568e-05 | H30: 0.0005613399777 | I30: 0.003512802496 | K30: 0.002477369121 | L30: 0.0003970937821 | M30: 4.334756613e-05 | N30: 0.0005494794842 | O30: 0.003467289954
A31: 2004 | B31: 1 | C31: 2 | D31: 5 | E31: 0.002424007965 | F31: 0.0005261647404 | G31: 7.9037568e-05 | H31: 0.0005514683225 | I31: 0.003580678596 | K31: 0.002564827684 | L31: 0.0003934232544 | M31: 4.334756613e-05 | N31: 0.0005398164061 | O31: 0.003541414911
A32: 2004 | B32: 1 | C32: 2 | D32: 6 | E32: 0.002571779898 | F32: 0.000550780834 | G32: 7.9037568e-05 | H32: 0.0005287941471 | I32: 0.003730392447 | K32: 0.002721184243 | L32: 0.0004118291697 | M32: 4.334756613e-05 | N32: 0.000517621311 | O32: 0.00369398229
A33: 2004 | B33: 1 | C33: 2 | D33: 7 | E33: 0.002746882466 | F33: 0.0006121962564 | G33: 7.9037568e-05 | H33: 0.0005172770755 | I33: 0.003955393366 | K33: 0.002906459177 | L33: 0.000457750634 | M33: 4.334756613e-05 | N33: 0.0005063475825 | O33: 0.003913904959
A34: 2004 | B34: 1 | C34: 2 | D34: 8 | E34: 0.002780619807 | F34: 0.0006963146628 | G34: 7.245742703e-05 | H34: 0.0005101783029 | I34: 0.0040595702 | K34: 0.002942156446 | L34: 0.0005206475457 | M34: 3.973873678e-05 | N34: 0.0004993987991 | O34: 0.004001941528
A35: 2004 | B35: 1 | C35: 2 | D35: 9 | E35: 0.002906619198 | F35: 0.0007824933259 | G35: 0 | H35: 0.0005860072624 | I35: 0.004275119787 | K35: 0.003075475615 | L35: 0.00058508495 | M35: 0 | N35: 0.0005736255764 | O35: 0.004234186142
A36: 2004 | B36: 1 | C36: 2 | D36: 10 | E36: 0.002962565434 | F36: 0.000851367191 | G36: 0 | H36: 0.000670185379 | I36: 0.004484118004 | K36: 0.003134671977 | L36: 0.0006365832319 | M36: 0 | N36: 0.0006560251024 | O36: 0.004427280312
A37: 2004 | B37: 1 | C37: 2 | D37: 11 | E37: 0.003235720538 | F37: 0.0008382071489 | G37: 0 | H37: 0.0006255244361 | I37: 0.004699452123 | K37: 0.003423695686 | L37: 0.0006267432214 | M37: 0 | N37: 0.0006123077959 | O37: 0.004662746703
A38: 2004 | B38: 1 | C38: 2 | D38: 12 | E38: 0.003041259669 | F38: 0.0008832592465 | G38: 0 | H38: 0.0007041578324 | I38: 0.004628676748 | K38: 0.003217937856 | L38: 0.0006604295206 | M38: 0 | N38: 0.0006892797555 | O38: 0.004567647132
A39: 2004 | B39: 1 | C39: 2 | D39: 13 | E39: 0.002902987416 | F39: 0.0008835884366 | G39: 0 | H39: 0.000736420333 | I39: 0.004522996186 | K39: 0.003071632849 | L39: 0.0006606756621 | M39: 0 | N39: 0.0007208605851 | O39: 0.004453169096
A40: 2004 | B40: 1 | C40: 2 | D40: 14 | E40: 0.002832780935 | F40: 0.0008909849871 | G40: 0 | H40: 0.0007234063197 | I40: 0.004447172242 | K40: 0.00299734781 | L40: 0.0006662062019 | M40: 0 | N40: 0.0007081215435 | O40: 0.004371675556
A41: 2004 | B41: 1 | C41: 2 | D41: 15 | E41: 0.002877180203 | F41: 0.0008508263144 | G41: 0 | H41: 0.0006482830648 | I41: 0.004376289583 | K41: 0.003044326398 | L41: 0.0006361788083 | M41: 0 | N41: 0.0006345855599 | O41: 0.004315090767
A42: 2004 | B42: 1 | C42: 2 | D42: 16 | E42: 0.002938386796 | F42: 0.0008814717236 | G42: 0 | H42: 0.0007609180647 | I42: 0.004580776584 | K42: 0.003109088711 | L42: 0.0006590929562 | M42: 0 | N42: 0.0007448407067 | O42: 0.004513022374
A43: 2004 | B43: 1 | C43: 2 | D43: 17 | E43: 0.003333796827 | F43: 0.0009633477662 | G43: 2.634585574e-06 | H43: 0.0009417157901 | I43: 0.005241494968 | K43: 0.003527469595 | L43: 0.0007203132103 | M43: 1.444918857e-06 | N43: 0.000921818376 | O43: 0.0051710461
A44: 2004 | B44: 1 | C44: 2 | D44: 18 | E44: 0.00395814966 | F44: 0.0009032470282 | G44: 7.9037568e-05 | H44: 0.0008283888767 | I44: 0.005768823133 | K44: 0.004188093427 | L44: 0.0006753747602 | M44: 4.334756613e-05 | N44: 0.000810885935 | O44: 0.005717701689
A45: 2004 | B45: 1 | C45: 2 | D45: 19 | E45: 0.003942908817 | F45: 0.000860605435 | G45: 7.9037568e-05 | H45: 0.0007542784635 | I45: 0.005636830284 | K45: 0.004171967187 | L45: 0.0006434908404 | M45: 4.334756613e-05 | N45: 0.000738341393 | O45: 0.005597146986
A46: 2004 | B46: 1 | C46: 2 | D46: 20 | E46: 0.003854501855 | F46: 0.0008431125423 | G46: 7.9037568e-05 | H46: 0.0007422541953 | I46: 0.00551890616 | K46: 0.004078424332 | L46: 0.0006304110761 | M46: 4.334756613e-05 | N46: 0.0007265711843 | O46: 0.005478754159
A47: 2004 | B47: 1 | C47: 2 | D47: 21 | E47: 0.003783526031 | F47: 0.0008144725503 | G47: 7.9037568e-05 | H47: 0.0007256646352 | I47: 0.005402700785 | K47: 0.004003325257 | L47: 0.0006089964165 | M47: 4.334756613e-05 | N47: 0.0007103321432 | O47: 0.005366001383
A48: 2004 | B48: 1 | C48: 2 | D48: 22 | E48: 0.003458279059 | F48: 0.0007682715023 | G48: 7.9037568e-05 | H48: 0.0007280895971 | I48: 0.005033677727 | K48: 0.003659183468 | L48: 0.0005744510255 | M48: 4.334756613e-05 | N48: 0.0007127058684 | O48: 0.004989687928
A49: 2004 | B49: 1 | C49: 2 | D49: 23 | E49: 0.003322558682 | F49: 0.0007007590646 | G49: 7.9037568e-05 | H49: 0.0006917157122 | I49: 0.004794071027 | K49: 0.003515578584 | L49: 0.0005239707084 | M49: 4.334756613e-05 | N49: 0.0006771005235 | O49: 0.004759997382
A50: 2004 | B50: 1 | C50: 2 | D50: 24 | E50: 0.002765496732 | F50: 0.0006367123459 | G50: 7.9037568e-05 | H50: 0.0006827149284 | I50: 0.004163961574 | K50: 0.002926154815 | L50: 0.0004760817744 | M50: 4.334756613e-05 | N50: 0.0006682899163 | O50: 0.004113874072
A51: 2004 | B51: 1 | C51: 3 | D51: 1 | E51: 0.002127515531 | F51: 0.0005957090617 | G51: 7.9037568e-05 | H51: 0.0007100639534 | I51: 0.003512326114 | K51: 0.002251110892 | L51: 0.000445422849 | M51: 4.334756613e-05 | N51: 0.0006950610866 | O51: 0.003434942394
A52: 2004 | B52: 1 | C52: 3 | D52: 2 | E52: 0.00200395071 | F52: 0.0005853601521 | G52: 7.9037568e-05 | H52: 0.0007356984614 | I52: 0.003404046892 | K52: 0.002120367727 | L52: 0.000437684775 | M52: 4.334756613e-05 | N52: 0.0007201539658 | O52: 0.003321554034
A53: 2004 | B53: 1 | C53: 3 | D53: 3 | E53: 0.002014578874 | F53: 0.0005585734766 | G53: 7.9037568e-05 | H53: 0.0006971226259 | I53: 0.003349312545 | K53: 0.002131613321 | L53: 0.0004176558749 | M53: 4.334756613e-05 | N53: 0.0006823931951 | O53: 0.003275009957
A54: 2004 | B54: 1 | C54: 3 | D54: 4 | E54: 0.002012081283 | F54: 0.0005516525663 | G54: 7.9037568e-05 | H54: 0.000695137988 | I54: 0.003337909405 | K54: 0.002128970635 | L54: 0.0004124809803 | M54: 4.334756613e-05 | N54: 0.0006804504904 | O54: 0.003265249672
A55: 2004 | B55: 1 | C55: 3 | D55: 5 | E55: 0.002065530168 | F55: 0.0005467918461 | G55: 7.9037568e-05 | H55: 0.000679667961 | I55: 0.003371027543 | K55: 0.002185524566 | L55: 0.0004088465286 | M55: 4.334756613e-05 | N55: 0.0006653073279 | O55: 0.003303025989
A56: 2004 | B56: 1 | C56: 3 | D56: 6 | E56: 0.002085307903 | F56: 0.0005764442845 | G56: 7.9037568e-05 | H56: 0.0006980611725 | I56: 0.003438850928 | K56: 0.002206451264 | L56: 0.0004310182135 | M56: 4.334756613e-05 | N56: 0.0006833119113 | O56: 0.003364128955
A57: 2004 | B57: 1 | C57: 3 | D57: 7 | E57: 0.002335721806 | F57: 0.0005834952669 | G57: 7.9037568e-05 | H57: 0.0006326627941 | I57: 0.003630917435 | K57: 0.00247141265 | L57: 0.0004362903653 | M57: 4.334756613e-05 | N57: 0.0006192953283 | O57: 0.00357034591
A58: 2004 | B58: 1 | C58: 3 | D58: 8 | E58: 0.002503146523 | F58: 0.0006404709043 | G58: 7.245742703e-05 | H58: 0.0006644199259 | I58: 0.00388049478 | K58: 0.002648563698 | L58: 0.0004788921191 | M58: 3.973873678e-05 | N58: 0.000650381467 | O58: 0.003817576021
A59: 2004 | B59: 1 | C59: 3 | D59: 9 | E59: 0.002749163734 | F59: 0.0006881695945 | G59: 0 | H59: 0.0006987870999 | I59: 0.004136120428 | K59: 0.002908872972 | L59: 0.0005145573252 | M59: 0 | N59: 0.0006840225006 | O59: 0.004107452797
A60: 2004 | B60: 1 | C60: 3 | D60: 10 | E60: 0.002983041837 | F60: 0.0007259472001 | G60: 0 | H60: 0.0007247002098 | I60: 0.004433689247 | K60: 0.003156337932 | L60: 0.0005428043502 | M60: 0 | N60: 0.0007093880951 | O60: 0.004408530377
A61: 2004 | B61: 1 | C61: 3 | D61: 11 | E61: 0.003211789768 | F61: 0.0006874321505 | G61: 0 | H61: 0.0006487950923 | I61: 0.004548017011 | K61: 0.003398374689 | L61: 0.0005140059245 | M61: 0 | N61: 0.0006350867689 | O61: 0.004547467382
A62: 2004 | B62: 1 | C62: 3 | D62: 12 | E62: 0.002989724355 | F62: 0.0007399252526 | G62: 0 | H62: 0.0007495527219 | I62: 0.004479202329 | K62: 0.003163408662 | L62: 0.0005532560024 | M62: 0 | N62: 0.000733715501 | O62: 0.004450380166
A63: 2004 | B63: 1 | C63: 3 | D63: 13 | E63: 0.002916153219 | F63: 0.0007197572847 | G63: 0 | H63: 0.0007120083877 | I63: 0.004347918891 | K63: 0.003085563503 | L63: 0.0005381760342 | M63: 0 | N63: 0.0006969644372 | O63: 0.004320703974
A64: 2004 | B64: 1 | C64: 3 | D64: 14 | E64: 0.002641505723 | F64: 0.0007930735841 | G64: 0 | H64: 0.0008479952772 | I64: 0.004282574585 | K64: 0.002794960704 | L64: 0.0005929960076 | M64: 0 | N64: 0.000830078074 | O64: 0.004218034785
A65: 2004 | B65: 1 | C65: 3 | D65: 15 | E65: 0.002630036781 | F65: 0.0007692328622 | G65: 0 | H65: 0.0008147874336 | I65: 0.004214057077 | K65: 0.002782825487 | L65: 0.0005751698523 | M65: 0 | N65: 0.0007975718754 | O65: 0.004155567215
A66: 2004 | B66: 1 | C66: 3 | D66: 16 | E66: 0.002782853381 | F66: 0.0007499046347 | G66: 0 | H66: 0.0007814476424 | I66: 0.004314205658 | K66: 0.002944519777 | L66: 0.0005607177737 | M66: 0 | N66: 0.0007649365172 | O66: 0.004270174068
A67: 2004 | B67: 1 | C67: 3 | D67: 17 | E67: 0.003115596108 | F67: 0.0007900093175 | G67: 2.634585574e-06 | H67: 0.0008458238855 | I67: 0.004754063897 | K67: 0.003296592778 | L67: 0.000590704798 | M67: 1.444918857e-06 | N67: 0.0008279525614 | O67: =SUM(K67:N67) -> 0.004716695056
A68: 2004 | B68: 1 | C68: 3 | D68: 18 | E68: 0.003407070973 | F68: 0.0007794378607 | G68: 7.9037568e-05 | H68: 0.0008213868056 | I68: 0.005086933207 | K68: =E68*R$5 -> 0.003605000511 | L68: =F68*S$5 -> 0.0005828003213 | M68: =G68*T$5 -> 4.334756613e-05 | N68: =H68*V$5 -> 0.00080403181 | O68: 0.005035180209
A69: 2004 | B69: 1 | C69: 3 | D69: 19 | E69: 0.003437094622 | F69: 0.0007278979755 | G69: 7.9037568e-05 | H69: 0.0007147923564 | I69: 0.004958822522 | K69: 0.003636768347 | L69: 0.0005442629815 | M69: 4.334756613e-05 | N69: 0.0006996895837 | O69: 0.004924068478
A70: 2004 | B70: 1 | C70: 3 | D70: 20 | E70: 0.003395197216 | F70: 0.0006815097818 | G70: 7.9037568e-05 | H70: 0.0006711006335 | I70: 0.0048268452 | K70: 0.003592436964 | L70: 0.0005095776582 | M70: 4.334756613e-05 | N70: 0.0006569210186 | O70: 0.004802283207
A71: 2004 | B71: 1 | C71: 3 | D71: 21 | E71: 0.003137561537 | F71: 0.0006934587126 | G71: 7.9037568e-05 | H71: 0.0007405861652 | I71: 0.004650643983 | K71: 0.003319834261 | L71: 0.0005185120982 | M71: 4.334756613e-05 | N71: 0.0007249383978 | O71: 0.004606632323
A72: 2004 | B72: 1 | C72: 3 | D72: 22 | E72: 0.002992577307 | F72: 0.00064382273 | G72: 7.9037568e-05 | H72: 0.0006828529892 | I72: 0.004398290595 | K72: 0.003166427353 | L72: 0.0004813983421 | M72: 4.334756613e-05 | N72: 0.00066842506 | O72: 0.004359598322
A73: 2004 | B73: 1 | C73: 3 | D73: 23 | E73: 0.002805961438 | F73: 0.000565153548 | G73: 7.9037568e-05 | H73: 0.0005786803963 | I73: 0.004028832951 | K73: 0.002968970268 | L73: 0.0004225759178 | M73: 4.334756613e-05 | N73: 0.0005664535189 | O73: 0.004001347271
A74: 2004 | B74: 1 | C74: 3 | D74: 24 | E74: 0.002291999563 | F74: 0.0006191527418 | G74: 7.9037568e-05 | H74: 0.0007813315623 | I74: 0.003771521435 | K74: 0.002425150418 | L74: 0.0004629521287 | M74: 4.334756613e-05 | N74: 0.0007648228897 | O74: 0.003696273003
A75: 2004 | B75: 1 | C75: 4 | D75: 1 | E75: 0.001900730697 | F75: 0.0005612771396 | G75: 7.9037568e-05 | H75: 0.0006942034605 | I75: 0.003235248865 | K75: 0.002011151276 | L75: 0.0004196774545 | M75: 4.334756613e-05 | N75: 0.0006795357084 | O75: 0.003153712005
A76: 2004 | B76: 1 | C76: 4 | D76: 2 | E76: 0.001857954918 | F76: 0.0005333285804 | G76: 7.9037568e-05 | H76: 0.0006654758529 | I76: 0.003135796919 | K76: 0.001965890492 | L76: 0.000398779792 | M76: 4.334756613e-05 | N76: 0.0006514150835 | O76: 0.003059432933
A77: 2004 | B77: 1 | C77: 4 | D77: 3 | E77: 0.001779721118 | F77: 0.0005378474691 | G77: 7.9037568e-05 | H77: 0.0007012657938 | I77: 0.003097871948 | K77: 0.001883111796 | L77: 0.00040215865 | M77: 4.334756613e-05 | N77: 0.0006864488224 | O77: 0.003015066834
A78: 2004 | B78: 1 | C78: 4 | D78: 4 | E78: 0.001782524682 | F78: 0.0005064195571 | G78: 7.9037568e-05 | H78: 0.0006374647799 | I78: 0.003005446587 | K78: 0.00188607823 | L78: 0.0003786594101 | M78: 4.334756613e-05 | N78: 0.0006239958535 | O78: 0.00293208106
A79: 2004 | B79: 1 | C79: 4 | D79: 5 | E79: 0.001842595419 | F79: 0.000504029911 | G79: 7.9037568e-05 | H79: 0.000633383165 | I79: 0.003059046063 | K79: 0.001949638701 | L79: 0.0003768726269 | M79: 4.334756613e-05 | N79: 0.0006200004786 | O79: 0.002989859373
A80: 2004 | B80: 1 | C80: 4 | D80: 6 | E80: 0.001918062945 | F80: 0.000525682505 | G80: 7.9037568e-05 | H80: 0.0006471553481 | I80: 0.003169938366 | K80: 0.002029490419 | L80: 0.0003930626779 | M80: 4.334756613e-05 | N80: 0.0006334816706 | O80: 0.003099382334
A81: 2004 | B81: 1 | C81: 4 | D81: 7 | E81: 0.00198242921 | F81: 0.0005676512978 | G81: 7.9037568e-05 | H81: 0.0006642346286 | I81: 0.003293352705 | K81: 0.002097595962 | L81: 0.0004244435322 | M81: 4.334756613e-05 | N81: 0.0006502000848 | O81: 0.003215587146
A82: 2004 | B82: 1 | C82: 4 | D82: 8 | E82: 0.002230136161 | F82: 0.0005796255602 | G82: 7.245742703e-05 | H82: 0.0006119287613 | I82: 0.003494147909 | K82: 0.002359693139 | L82: 0.000433396913 | M82: 3.973873678e-05 | N82: 0.0005989993828 | O82: 0.003431828172
A83: 2004 | B83: 1 | C83: 4 | D83: 9 | E83: 0.002551283978 | F83: 0.0005956773935 | G83: 0 | H83: 0.0005850966593 | I83: 0.00373205803 | K83: 0.002699497638 | L83: 0.0004453991702 | M83: 0 | N83: 0.0005727342134 | O83: 0.003717631022
A84: 2004 | B84: 1 | C84: 4 | D84: 10 | E84: 0.002730735244 | F84: 0.0006144829169 | G84: 0 | H84: 0.0005648442922 | I84: 0.003910062453 | K84: 0.002889373902 | L84: 0.000459460413 | M84: 0 | N84: 0.0005529097564 | O84: 0.003901744071
A85: 2004 | B85: 1 | C85: 4 | D85: 11 | E85: 0.002668403041 | F85: 0.0006526239737 | G85: 0 | H85: 0.0006296624954 | I85: 0.00395068951 | K85: 0.002823420587 | L85: 0.0004879791972 | M85: 0 | N85: 0.0006163584226 | O85: 0.003927758207
A86: 2004 | B86: 1 | C86: 4 | D86: 12 | E86: 0.002682062095 | F86: 0.0006788449972 | G86: 0 | H86: 0.0006507688678 | I86: 0.004011675959 | K86: 0.002837873146 | L86: 0.0005075851488 | M86: 0 | N86: 0.0006370188406 | O86: 0.003982477136
A87: 2004 | B87: 1 | C87: 4 | D87: 13 | E87: 0.002551332539 | F87: 0.0006742835774 | G87: 0 | H87: 0.0006509353484 | I87: 0.003876551464 | K87: 0.00269954902 | L87: 0.0005041744896 | M87: 0 | N87: 0.0006371818037 | O87: 0.003840905313
A88: 2004 | B88: 1 | C88: 4 | D88: 14 | E88: 0.002381778229 | F88: 0.0006514515689 | G88: 0 | H88: 0.000562261819 | I88: 0.003595491617 | K88: 0.002520144665 | L88: 0.0004871025681 | M88: 0 | N88: 0.000550381848 | O88: 0.003557629081
A89: 2004 | B89: 1 | C89: 4 | D89: 15 | E89: 0.002440546939 | F89: 0.0006602472815 | G89: 0 | H89: 0.0005686558154 | I89: 0.003669450036 | K89: 0.00258232747 | L89: 0.0004936792876 | M89: 0 | N89: 0.0005566407463 | O89: 0.003632647503
A90: 2004 | B90: 1 | C90: 4 | D90: 16 | E90: 0.002581990585 | F90: 0.0006599731895 | G90: 0 | H90: 0.0005847713209 | I90: 0.003826735095 | K90: 0.002731988107 | L90: 0.0004934743438 | M90: 0 | N90: 0.000572415749 | O90: 0.0037978782
A91: 2004 | B91: 1 | C91: 4 | D91: 17 | E91: 0.002948876094 | F91: 0.000699259122 | G91: 1.317292826e-06 | H91: 0.0006543634752 | I91: 0.004303815984 | K91: 0.003120187372 | L91: 0.0005228491731 | M91: 7.2245945e-07 | N91: 0.000640537498 | O91: 0.004284296503
A92: 2004 | B92: 1 | C92: 4 | D92: 18 | E92: 0.0033649353 | F92: 0.0006615564288 | G92: 7.9037568e-05 | H92: 0.0006056427956 | I92: 0.004711172092 | K92: 0.003560417019 | L92: 0.0004946581616 | M92: 4.334756613e-05 | N92: 0.0005928462325 | O92: 0.004691268979
A93: 2004 | B93: 1 | C93: 4 | D93: 19 | E93: 0.003382693169 | F93: 0.0006224780407 | G93: 7.9037568e-05 | H93: 0.0005531854792 | I93: 0.004637394257 | K93: 0.003579206509 | L93: 0.0004654385172 | M93: 4.334756613e-05 | N93: 0.0005414972812 | O93: 0.004629489874
A94: 2004 | B94: 1 | C94: 4 | D94: 20 | E94: 0.003354455309 | F94: 0.0005899138547 | G94: 7.9037568e-05 | H94: 0.0005375970578 | I94: 0.00456100379 | K94: 0.003549328206 | L94: 0.0004410896639 | M94: 4.334756613e-05 | N94: 0.000526238226 | O94: 0.004560003662
A95: 2004 | B95: 1 | C95: 4 | D95: 21 | E95: 0.003221458945 | F95: 0.0005880549644 | G95: 7.9037568e-05 | H95: 0.0005816484663 | I95: 0.004470199944 | K95: 0.003408605584 | L95: 0.0004396997368 | M95: 4.334756613e-05 | N95: 0.0005693588769 | O95: 0.004461011764
A96: 2004 | B96: 1 | C96: 4 | D96: 22 | E96: 0.00294725918 | F96: 0.0005655777362 | G96: 7.9037568e-05 | H96: 0.0005623132137 | I96: 0.004154187698 | K96: 0.003118476526 | L96: 0.0004228930913 | M96: 4.334756613e-05 | N96: 0.0005504321568 | O96: 0.00413514934
A97: 2004 | B97: 1 | C97: 4 | D97: 23 | E97: 0.00250610578 | F97: 0.000582724368 | G97: 7.9037568e-05 | H97: 0.000627608603 | I97: 0.003795476319 | K97: 0.002651694869 | L97: 0.0004357139498 | M97: 4.334756613e-05 | N97: 0.0006143479267 | O97: 0.003745104311
A98: 2004 | B98: 1 | C98: 4 | D98: 24 | E98: 0.002073361648 | F98: 0.0005689476167 | G98: 7.9037568e-05 | H98: 0.0006650619006 | I98: 0.003386408733 | K98: 0.002193811006 | L98: 0.0004254128142 | M98: 4.334756613e-05 | N98: 0.0006510098775 | O98: 0.003313581264
A99: 2004 | B99: 1 | C99: 5 | D99: 1 | E99: 0.002154369375 | F99: 0.000525909597 | G99: 7.9037568e-05 | H99: 0.0005529402058 | I99: 0.003312256746 | K99: 0.002279524776 | L99: 0.0003932324789 | M99: 4.334756613e-05 | N99: 0.0005412571902 | O99: 0.003257362012
A100: 2004 | B100: 1 | C100: 5 | D100: 2 | E100: 0.002092170504 | F100: 0.0005028002036 | G100: 7.9037568e-05 | H100: 0.0005421354411 | I100: 0.003216143716 | K100: 0.00221371254 | L100: 0.0003759531516 | M100: 4.334756613e-05 | N100: 0.0005306807182 | O100: 0.003163693975
A101: 2004 | B101: 1 | C101: 5 | D101: 3 | E101: 0.002110939555 | F101: 0.0005039792281 | G101: 7.9037568e-05 | H101: 0.0005589222364 | I101: 0.003252878587 | K101: 0.002233571955 | L101: 0.0003768347304 | M101: 4.334756613e-05 | N101: 0.0005471128271 | O101: 0.003200867079
A102: 2004 | B102: 1 | C102: 5 | D102: 4 | E102: 0.002150863178 | F102: 0.0004957345933 | G102: 7.9037568e-05 | H102: 0.0005491093606 | I102: 0.0032747447 | K102: 0.002275814892 | L102: 0.0003706700621 | M102: 4.334756613e-05 | N102: 0.0005375072865 | O102: 0.003227339806
A103: 2004 | B103: 1 | C103: 5 | D103: 5 | E103: 0.002250508863 | F103: 0.0004958982378 | G103: 7.9037568e-05 | H103: 0.0005347227418 | I103: 0.003360167411 | K103: 0.002381249369 | L103: 0.0003707924222 | M103: 4.334756613e-05 | N103: 0.0005234246411 | O103: 0.003318813998
A104: 2004 | B104: 1 | C104: 5 | D104: 6 | E104: 0.002481131869 | F104: 0.0005307467338 | G104: 7.9037568e-05 | H104: 0.0005551608231 | I104: 0.003646076994 | K104: 0.00262527013 | L104: 0.0003968492969 | M104: 4.334756613e-05 | N104: 0.0005434308883 | O104: 0.003608897881
A105: 2004 | B105: 1 | C105: 5 | D105: 7 | E105: 0.0029484988 | F105: 0.0006046528959 | G105: 8.4701088e-05 | H105: 0.0005596353062 | I105: 0.00419748809 | K105: 0.00311978816 | L105: 0.0004521103218 | M105: 4.645368154e-05 | N105: 0.0005478108305 | O105: 0.004166162994
A106: 2004 | B106: 1 | C106: 5 | D106: 8 | E106: 0.002855669699 | F106: 0.0007235746634 | G106: 7.764944012e-05 | H106: 0.0006358326397 | I106: 0.004292726442 | K106: 0.003021566268 | L106: 0.0005410303599 | M106: 4.258625772e-05 | N106: 0.0006223981986 | O106: 0.004227581085
A107: 2004 | B107: 1 | C107: 5 | D107: 9 | E107: 0.002670761422 | F107: 0.0007980927006 | G107: 0 | H107: 0.0006883036349 | I107: 0.004157157758 | K107: 0.002825915976 | L107: 0.0005967488953 | M107: 0 | N107: 0.0006737605396 | O107: 0.004096425411
A108: 2004 | B108: 1 | C108: 5 | D108: 10 | E108: 0.002548254062 | F108: 0.0008464369971 | G108: 0 | H108: 0.0007210672243 | I108: 0.004115758283 | K108: 0.002696291703 | L108: 0.0006328968334 | M108: 0 | N108: 0.0007058318706 | O108: 0.004035020407
A109: 2004 | B109: 1 | C109: 5 | D109: 11 | E109: 0.002398536855 | F109: 0.0008500556273 | G109: 0 | H109: 0.0007150760572 | I109: 0.00396366854 | K109: 0.002537876862 | L109: 0.0006356025511 | M109: 0 | N109: 0.0006999672902 | O109: 0.003873446704
A110: 2004 | B110: 1 | C110: 5 | D110: 12 | E110: 0.002377731474 | F110: 0.0008469345799 | G110: 0 | H110: 0.0006944928166 | I110: 0.00391915887 | K110: 0.002515862818 | L110: 0.0006332688854 | M110: 0 | N110: 0.0006798189507 | O110: 0.003828950654
A111: 2004 | B111: 1 | C111: 5 | D111: 13 | E111: 0.002329868971 | F111: 0.0008390429569 | G111: 0 | H111: 0.0006943674319 | I111: 0.00386327936 | K111: 0.002465219802 | L111: 0.0006273681707 | M111: 0 | N111: 0.0006796962153 | O111: 0.003772284188
A112: 2004 | B112: 1 | C112: 5 | D112: 14 | E112: 0.002267465809 | F112: 0.0008360229092 | G112: 0 | H112: 0.0006400619359 | I112: 0.003743550654 | K112: 0.002399191407 | L112: 0.0006251100244 | M112: 0 | N112: 0.0006265381344 | O112: 0.003650839566
A113: 2004 | B113: 1 | C113: 5 | D113: 15 | E113: 0.002295209027 | F113: 0.0008379771814 | G113: 0 | H113: 0.0006668273536 | I113: 0.003800013562 | K113: 0.002428546333 | L113: 0.0006265712704 | M113: 0 | N113: 0.0006527380284 | O113: 0.003707855632
A114: 2004 | B114: 1 | C114: 5 | D114: 16 | E114: 0.002430690127 | F114: 0.0008453167859 | G114: 0 | H114: 0.0007258540935 | I114: 0.004001861006 | K114: 0.002571898038 | L114: 0.0006320592305 | M114: 0 | N114: 0.0007105175985 | O114: 0.003914474867
A115: 2004 | B115: 1 | C115: 5 | D115: 17 | E115: 0.003004235592 | F115: 0.0008712541732 | G115: 0 | H115: 0.0007904157669 | I115: 0.004665905532 | K115: 0.003178762911 | L115: 0.0006514531019 | M115: 0 | N115: 0.0007737151551 | O115: 0.004603931168
A116: 2004 | B116: 1 | C116: 5 | D116: 18 | E116: 0.003680987954 | F116: 0.0007711302754 | G116: 8.4701088e-05 | H116: 0.0005950746002 | I116: 0.005131893918 | K116: 0.003894830358 | L116: 0.0005765885838 | M116: 4.645368154e-05 | N116: 0.0005825013314 | O116: 0.005100373954
A117: 2004 | B117: 1 | C117: 5 | D117: 19 | E117: 0.004020233535 | F117: 0.0006817098125 | G117: 8.4701088e-05 | H117: 0.0003901471855 | I117: 0.005176791621 | K117: 0.004253783988 | L117: 0.000509727225 | M117: 4.645368154e-05 | N117: 0.0003819038066 | O117: 0.005191868701
A118: 2004 | B118: 1 | C118: 5 | D118: 20 | E118: 0.003703150576 | F118: 0.0007262168109 | G118: 8.4701088e-05 | H118: 0.0005393993985 | I118: 0.005053467873 | K118: 0.003918280489 | L118: 0.0005430059432 | M118: 4.645368154e-05 | N118: 0.0005280024852 | O118: 0.0050357426
A119: 2004 | B119: 1 | C119: 5 | D119: 21 | E119: 0.003548148015 | F119: 0.0007117792434 | G119: 8.4701088e-05 | H119: 0.0005601507502 | I119: 0.004904779096 | K119: 0.003754273248 | L119: 0.0005322107029 | M119: 4.645368154e-05 | N119: 0.0005483153838 | O119: 0.004881253016
A120: 2004 | B120: 1 | C120: 5 | D120: 22 | E120: 0.003261363508 | F120: 0.0006516366316 | G120: 8.4701088e-05 | H120: 0.0005231119165 | I120: 0.004520813144 | K120: 0.003450828353 | L120: 0.000487240943 | M120: 4.645368154e-05 | N120: 0.0005120591397 | O120: 0.004496582117
A121: 2004 | B121: 1 | C121: 5 | D121: 23 | E121: 0.002821988869 | F121: 0.0006122413904 | G121: 8.4701088e-05 | H121: 0.0005462922694 | I121: 0.004065223617 | K121: 0.002985928793 | L121: 0.0004577843816 | M121: 4.645368154e-05 | N121: 0.0005347497173 | O121: 0.004024916573
A122: 2004 | B122: 1 | C122: 5 | D122: 24 | E122: 0.002328304919 | F122: 0.0005716729361 | G122: 8.4701088e-05 | H122: 0.0005615920579 | I122: 0.003546271001 | K122: 0.002463564889 | L122: 0.0004274505867 | M122: 4.645368154e-05 | N122: 0.0005497262382 | O122: 0.003487195395
A123: 2004 | B123: 1 | C123: 6 | D123: 1 | E123: 0.002497058231 | F123: 0.0006253363112 | G123: 8.4701088e-05 | H123: 0.0006818144589 | I123: 0.003888910089 | K123: 0.002642121714 | L123: 0.0004675756997 | M123: 4.645368154e-05 | N123: 0.0006674084728 | O123: 0.003823559568
A124: 2004 | B124: 1 | C124: 6 | D124: 2 | E124: 0.002462240385 | F124: 0.0005934355622 | G124: 8.4701088e-05 | H124: 0.0006478467 | I124: 0.003788223735 | K124: 0.002605281169 | L124: 0.0004437229108 | M124: 4.645368154e-05 | N124: 0.000634158415 | O124: 0.003729616176
A125: 2004 | B125: 1 | C125: 6 | D125: 3 | E125: 0.00249117691 | F125: 0.0005979684807 | G125: 8.4701088e-05 | H125: 0.0006793358021 | I125: 0.003853182281 | K125: 0.002635898726 | L125: 0.000447112259 | M125: 4.645368154e-05 | N125: 0.0006649821872 | O125: 0.003794446854
A126: 2004 | B126: 1 | C126: 6 | D126: 4 | E126: 0.002612534021 | F126: 0.0005852001975 | G126: 8.4701088e-05 | H126: 0.000663929675 | I126: 0.003946364982 | K126: 0.002764305926 | L126: 0.000437565174 | M126: 4.645368154e-05 | N126: 0.0006499015745 | O126: 0.003898226356
A127: 2004 | B127: 1 | C127: 6 | D127: 5 | E127: 0.002711726758 | F127: 0.0005796350035 | G127: 8.4701088e-05 | H127: 0.0006389570525 | I127: 0.004015019902 | K127: 0.002869261141 | L127: 0.000433403974 | M127: 4.645368154e-05 | N127: 0.000625456596 | O127: 0.003974575393
A128: 2004 | B128: 1 | C128: 6 | D128: 6 | E128: 0.002999968512 | F128: 0.0006344102049 | G128: 8.4701088e-05 | H128: 0.0006934214761 | I128: 0.004412501281 | K128: 0.00317424794 | L128: 0.0004743604204 | M128: 4.645368154e-05 | N128: 0.0006787702465 | O128: 0.004373832289
A129: 2004 | B129: 1 | C129: 6 | D129: 7 | E129: 0.003390826032 | F129: 0.0007078766885 | G129: 8.4701088e-05 | H129: 0.0006927695022 | I129: 0.004876173311 | K129: 0.003587811841 | L129: 0.0005292926894 | M129: 4.645368154e-05 | N129: 0.0006781320481 | O129: 0.00484169026
A130: 2004 | B130: 1 | C130: 6 | D130: 8 | E130: 0.00336655221 | F130: 0.0008184401118 | G130: 7.764944012e-05 | H130: 0.0007446817035 | I130: 0.005007323465 | K130: 0.003562127861 | L130: 0.0006119630366 | M130: 4.258625772e-05 | N130: 0.0007289474019 | O130: 0.004945624558
A131: 2004 | B131: 1 | C131: 6 | D131: 9 | E131: 0.00312189036 | F131: 0.0008920095079 | G131: 0 | H131: 0.0007893625053 | I131: 0.004803262374 | K131: 0.003303252687 | L131: 0.0006669722553 | M131: 0 | N131: 0.0007726841477 | O131: =SUM(K131:N131) -> 0.00474290909
A132: 2004 | B132: 1 | C132: 6 | D132: 10 | E132: 0.002926974395 | F132: 0.0009478028439 | G132: 0 | H132: 0.0008365350178 | I132: 0.004711312257 | K132: =E132*R$5 -> 0.003097013322 | L132: =F132*S$5 -> 0.0007086899801 | M132: =G132*T$5 -> 0 | N132: =H132*V$5 -> 0.0008188599572 | O132: 0.004624563259
A133: 2004 | B133: 1 | C133: 6 | D133: 11 | E133: 0.002771584792 | F133: 0.0009516428956 | G133: 0 | H133: 0.0008343112017 | I133: 0.00455753889 | K133: 0.002932596554 | L133: 0.0007115612588 | M133: 0 | N133: 0.0008166831279 | O133: 0.00446084094
A134: 2004 | B134: 1 | C134: 6 | D134: 12 | E134: 0.002645767318 | F134: 0.0009357048835 | G134: 0 | H134: 0.0007824217783 | I134: 0.004363893979 | K134: 0.00279946987 | L134: 0.0006996441079 | M134: 0 | N134: 0.0007658900706 | O134: 0.004265004048
A135: 2004 | B135: 1 | C135: 6 | D135: 13 | E135: 0.002584323597 | F135: 0.000930964251 | G135: 0 | H135: 0.000797310895 | I135: 0.004312598743 | K135: 0.002734456653 | L135: 0.000696099448 | M135: 0 | N135: 0.0007804645967 | O135: 0.004211020698
A136: 2004 | B136: 1 | C136: 6 | D136: 14 | E136: 0.002489446816 | F136: 0.0009365825615 | G136: 0 | H136: 0.0007871151463 | I136: 0.004213144524 | K136: 0.002634068124 | L136: 0.0007003003642 | M136: 0 | N136: 0.0007704842729 | O136: 0.004104852761
A137: 2004 | B137: 1 | C137: 6 | D137: 15 | E137: 0.002609636677 | F137: 0.0009103566496 | G137: 0 | H137: 0.0007475821783 | I137: 0.004267575505 | K137: 0.002761240264 | L137: 0.0006806907576 | M137: 0 | N137: 0.0007317865929 | O137: 0.004173717615
A138: 2004 | B138: 1 | C138: 6 | D138: 16 | E138: 0.00285933855 | F138: 0.0008876119537 | G138: 0 | H138: 0.0007297259553 | I138: 0.004476676459 | K138: 0.003025448257 | L138: 0.0006636841215 | M138: 0 | N138: 0.0007143076521 | O138: 0.00440344003
A139: 2004 | B139: 1 | C139: 6 | D139: 17 | E139: 0.003472152648 | F139: 0.0009321751379 | G139: 0 | H139: 0.0008215034481 | I139: 0.005225831235 | K139: 0.003673863026 | L139: 0.0006970048509 | M139: 0 | N139: 0.000804145988 | O139: 0.005175013865
A140: 2004 | B140: 1 | C140: 6 | D140: 18 | E140: 0.00401328849 | F140: 0.0008932825693 | G140: 8.328940317e-05 | H140: 0.0007771462407 | I140: 0.005767006703 | K140: 0.004246435479 | L140: 0.0006679241472 | M140: 4.56794535e-05 | N140: 0.0007607259993 | O140: 0.005720765079
A141: 2004 | B141: 1 | C141: 6 | D141: 19 | E141: 0.004374782129 | F141: 0.0008356915284 | G141: 8.4701088e-05 | H141: 0.0006245964368 | I141: 0.005919771183 | K141: 0.00462892964 | L141: 0.0006248622447 | M141: 4.645368154e-05 | N141: 0.0006113994042 | O141: 0.005911644971
A142: 2004 | B142: 1 | C142: 6 | D142: 20 | E142: 0.00435109909 | F142: 0.0008014397884 | G142: 8.4701088e-05 | H142: 0.0006005494415 | I142: 0.005837789408 | K142: 0.004603870764 | L142: 0.0005992515757 | M142: 4.645368154e-05 | N142: 0.0005878604953 | O142: 0.005837436517
A143: 2004 | B143: 1 | C143: 6 | D143: 21 | E143: 0.004052563708 | F143: 0.0008053281207 | G143: 8.4701088e-05 | H143: 0.0006802718575 | I143: 0.005622864774 | K143: 0.004287992341 | L143: 0.0006021589547 | M143: 4.645368154e-05 | N143: 0.0006658984648 | O143: 0.005602503442
A144: 2004 | B144: 1 | C144: 6 | D144: 22 | E144: 0.003759311354 | F144: 0.0007909793537 | G144: 8.4701088e-05 | H144: 0.0007310613286 | I144: 0.005366053125 | K144: 0.003977703858 | L144: 0.0005914301123 | M144: 4.645368154e-05 | N144: 0.0007156148105 | O144: 0.005331202463
A145: 2004 | B145: 1 | C145: 6 | D145: 23 | E145: 0.003220073916 | F145: 0.0006824812793 | G145: 8.4701088e-05 | H145: 0.0006388252149 | I145: 0.004626081499 | K145: 0.003407140094 | L145: 0.0005103040651 | M145: 4.645368154e-05 | N145: 0.0006253275439 | O145: 0.004589225385
A146: 2004 | B146: 1 | C146: 6 | D146: 24 | E146: 0.002763456617 | F146: 0.0006456868415 | G146: 8.4701088e-05 | H146: 0.0006452692177 | I146: 0.004139113764 | K146: 0.002923996182 | L146: 0.0004827921732 | M146: 4.645368154e-05 | N146: 0.0006316353921 | O146: 0.004084877429
A147: 2004 | B147: 1 | C147: 7 | D147: 1 | E147: 0.002618641944 | F147: 0.0006407451175 | G147: 8.4701088e-05 | H147: 0.0006884735761 | I147: 0.004032561726 | K147: 0.002770768682 | L147: 0.0004790971534 | M147: 4.645368154e-05 | N147: 0.0006739268902 | O147: 0.003970246407
A148: 2004 | B148: 1 | C148: 7 | D148: 2 | E148: 0.00261159509 | F148: 0.0006131016496 | G148: 8.4701088e-05 | H148: 0.0006643778128 | I148: 0.003973775641 | K148: 0.00276331245 | L148: 0.0004584276135 | M148: 4.645368154e-05 | N148: 0.0006503402437 | O148: 0.003918533988
A149: 2004 | B149: 1 | C149: 7 | D149: 3 | E149: 0.002656897225 | F149: 0.0006223352527 | G149: 8.4701088e-05 | H149: 0.0007030535264 | I149: 0.004066987092 | K149: 0.002811246355 | L149: 0.0004653317519 | M149: 4.645368154e-05 | N149: 0.0006881987822 | O149: 0.004011230571
A150: 2004 | B150: 1 | C150: 7 | D150: 4 | E150: 0.002764578463 | F150: 0.0006025844965 | G150: 8.4701088e-05 | H150: 0.0006727651322 | I150: 0.00412462918 | K150: 0.002925183201 | L150: 0.0004505637407 | M150: 4.645368154e-05 | N150: 0.0006585503483 | O150: 0.004080750972
A151: 2004 | B151: 1 | C151: 7 | D151: 5 | E151: 0.002864038759 | F151: 0.0005936738259 | G151: 8.4701088e-05 | H151: 0.0006418018634 | I151: 0.004184215536 | K151: 0.003030421518 | L151: 0.000443901065 | M151: 4.645368154e-05 | N151: 0.0006282412992 | O151: 0.004149017564
A152: 2004 | B152: 1 | C152: 7 | D152: 6 | E152: 0.003138160116 | F152: 0.0006455042945 | G152: 8.4701088e-05 | H152: 0.0006861791275 | I152: 0.004554544626 | K152: 0.003320467614 | L152: 0.0004826556794 | M152: 4.645368154e-05 | N152: 0.0006716809207 | O152: 0.004521257896
A153: 2004 | B153: 1 | C153: 7 | D153: 7 | E153: 0.003538393407 | F153: 0.0007078111487 | G153: 8.4701088e-05 | H153: 0.0006800885856 | I153: 0.00501099423 | K153: 0.003743951959 | L153: 0.000529243684 | M153: 4.645368154e-05 | N153: 0.0006657190653 | O153: 0.00498536839
A154: 2004 | B154: 1 | C154: 7 | D154: 8 | E154: 0.003482250474 | F154: 0.0008173767047 | G154: 7.764944012e-05 | H154: 0.000733104755 | I154: 0.005110381373 | K154: 0.003684547471 | L154: 0.0006111679072 | M154: 4.258625772e-05 | N154: 0.0007176150616 | O154: 0.005055916698
A155: 2004 | B155: 1 | C155: 7 | D155: 9 | E155: 0.00324563115 | F155: 0.0008953040801 | G155: 0 | H155: 0.0007879416369 | I155: 0.004928876867 | K155: 0.003434182044 | L155: 0.0006694356688 | M155: 0 | N155: 0.0007712933007 | O155: 0.004874911013
A156: 2004 | B156: 1 | C156: 7 | D156: 10 | E156: 0.00304538241 | F156: 0.0009555872103 | G156: 0 | H156: 0.0008388130534 | I156: 0.004839782674 | K156: 0.003222300103 | L156: 0.000714510497 | M156: 0 | N156: 0.0008210898604 | O156: 0.00475790046
A157: 2004 | B157: 1 | C157: 7 | D157: 11 | E157: 0.002870991633 | F157: 0.0009565119785 | G157: 0 | H157: 0.000832718855 | I157: 0.004660222466 | K157: 0.00303777831 | L157: 0.0007152019635 | M157: 0 | N157: 0.0008151244256 | O157: 0.0045681047
A158: 2004 | B158: 1 | C158: 7 | D158: 12 | E158: 0.002765214261 | F158: 0.0009458653869 | G158: 0 | H158: 0.000793828714 | I158: 0.004504908362 | K158: 0.002925855934 | L158: 0.0007072413071 | M158: 0 | N158: 0.0007770559904 | O158: 0.004410153232
A159: 2004 | B159: 1 | C159: 7 | D159: 13 | E159: 0.002702071123 | F159: 0.0009424399872 | G159: 0 | H159: 0.0008125906706 | I159: 0.004457101781 | K159: 0.002859044574 | L159: 0.0007046800714 | M159: 0 | N159: 0.0007954215276 | O159: 0.004359146173
A160: 2004 | B160: 1 | C160: 7 | D160: 14 | E160: 0.002593359371 | F160: 0.0009478656931 | G160: 0 | H160: 0.0007976184115 | I160: 0.004338843476 | K160: 0.002744017349 | L160: 0.0007087369736 | M160: 0 | N160: 0.0007807656157 | O160: 0.004233519938
A161: 2004 | B161: 1 | C161: 7 | D161: 15 | E161: 0.002725244914 | F161: 0.0009227598737 | G161: 0 | H161: 0.0007586600086 | I161: 0.004406664797 | K161: 0.002883564618 | L161: 0.0006899648811 | M161: 0 | N161: 0.0007426303609 | O161: 0.00431615986
A162: 2004 | B162: 1 | C162: 7 | D162: 16 | E162: 0.002971360327 | F162: 0.0008923182271 | G162: 0 | H162: 0.0007328398493 | I162: 0.004596518403 | K162: 0.003143977799 | L162: 0.0006672030904 | M162: 0 | N162: 0.000717355753 | O162: 0.004528536642
A163: 2004 | B163: 1 | C163: 7 | D163: 17 | E163: 0.003532184159 | F163: 0.0009216023992 | G163: 0 | H163: 0.0007856043508 | I163: 0.005239390909 | K163: 0.003737381992 | L163: 0.0006890994157 | M163: 0 | N163: 0.0007690053989 | O163: 0.005195486807
A164: 2004 | B164: 1 | C164: 7 | D164: 18 | E164: 0.004127687228 | F164: 0.0008923668591 | G164: 8.187771843e-05 | H164: 0.0007513953518 | I164: 0.005853327158 | K164: 0.004367480069 | L164: 0.0006672394535 | M164: 4.490522551e-05 | N164: 0.0007355191983 | O164: 0.005815143947
A165: 2004 | B165: 1 | C165: 7 | D165: 19 | E165: 0.004379318606 | F165: 0.0007960850436 | G165: 8.4701088e-05 | H165: 0.0005243716579 | I165: 0.005784476395 | K165: 0.004633729658 | L165: 0.0005952477325 | M165: 4.645368154e-05 | N165: 0.0005132922642 | O165: 0.005788723336
A166: 2004 | B166: 1 | C166: 7 | D166: 20 | E166: 0.00436461193 | F166: 0.0007676326092 | G166: 8.4701088e-05 | H166: 0.0005120616699 | I166: 0.005729007297 | K166: 0.004618168616 | L166: 0.0005739733131 | M166: 4.645368154e-05 | N166: 0.0005012423726 | O166: 0.005739837983
A167: 2004 | B167: 1 | C167: 7 | D167: 21 | E167: 0.004103405934 | F167: 0.0007902623825 | G167: 8.4701088e-05 | H167: 0.0006241450717 | I167: 0.005602514476 | K167: 0.004341788184 | L167: 0.0005908940194 | M167: 4.645368154e-05 | N167: 0.0006109575759 | O167: 0.00559009346
A168: 2004 | B168: 1 | C168: 7 | D168: 22 | E168: 0.003815713728 | F168: 0.000774709329 | G168: 8.4701088e-05 | H168: 0.0006860698798 | I168: 0.005361194025 | K168: 0.004037382858 | L168: 0.0005792647093 | M168: 4.645368154e-05 | N168: 0.0006715739813 | O168: 0.00533467523
A169: 2004 | B169: 1 | C169: 7 | D169: 23 | E169: 0.003330287261 | F169: 0.0006942460733 | G169: 8.4701088e-05 | H169: 0.0006273867086 | I169: 0.004736621131 | K169: 0.003523756145 | L169: 0.0005191008225 | M169: 4.645368154e-05 | N169: 0.0006141307206 | O169: 0.00470344137
A170: 2004 | B170: 1 | C170: 7 | D170: 24 | E170: 0.002883703562 | F170: 0.0006599351352 | G170: 8.4701088e-05 | H170: 0.0006438263962 | I170: 0.004272166182 | K170: 0.003051228724 | L170: 0.00049344589 | M170: 4.645368154e-05 | N170: 0.0006302230558 | O170: 0.004221351351
A171: 2004 | B171: 1 | C171: 8 | D171: 1 | E171: 0.002771601266 | F171: 0.0006375234496 | G171: 8.4701088e-05 | H171: 0.00065818708 | I171: 0.004152012883 | K171: 0.002932613984 | L171: 0.0004766882519 | M171: 4.645368154e-05 | N171: 0.0006442803142 | O171: 0.004100036232
A172: 2004 | B172: 1 | C172: 8 | D172: 2 | E172: 0.002771236926 | F172: 0.0006070287315 | G172: 8.4701088e-05 | H172: 0.0006285189265 | I172: 0.004091485672 | K172: 0.002932228479 | L172: 0.0004538867787 | M172: 4.645368154e-05 | N172: 0.0006152390161 | O172: 0.004047807955
A173: 2004 | B173: 1 | C173: 8 | D173: 3 | E173: 0.002820393851 | F173: 0.000615846664 | G173: 8.4701088e-05 | H173: 0.000666516514 | I173: 0.004187458117 | K173: 0.002984241114 | L173: 0.0004604801123 | M173: 4.645368154e-05 | N173: 0.0006524337565 | O173: 0.004143608665
A174: 2004 | B174: 1 | C174: 8 | D174: 4 | E174: 0.002941402342 | F174: 0.0005924106669 | G174: 8.4701088e-05 | H174: 0.000628293428 | I174: 0.004246807525 | K174: 0.003112279442 | L174: 0.0004429565774 | M174: 4.645368154e-05 | N174: 0.0006150182821 | O174: 0.004216707983
A175: 2004 | B175: 1 | C175: 8 | D175: 5 | E175: 0.003051502165 | F175: 0.0005809116545 | G175: 8.4701088e-05 | H175: 0.0005910443035 | I175: 0.004308159211 | K175: 0.003228775377 | L175: 0.0004343585498 | M175: 4.645368154e-05 | N175: 0.0005785561904 | O175: 0.004288143799
A176: 2004 | B176: 1 | C176: 8 | D176: 6 | E176: 0.003335848022 | F176: 0.0006333187257 | G176: 8.4701088e-05 | H176: 0.0006355903948 | I176: 0.004689458231 | K176: 0.003529639952 | L176: 0.0004735443009 | M176: 4.645368154e-05 | N176: 0.0006221610721 | O176: 0.004671799007
A177: 2004 | B177: 1 | C177: 8 | D177: 7 | E177: 0.003759739992 | F177: 0.0006931214641 | G177: 8.4701088e-05 | H177: 0.0006218661914 | I177: 0.005159428736 | K177: 0.003978157397 | L177: 0.0005182599311 | M177: 4.645368154e-05 | N177: 0.0006087268458 | O177: 0.005151597856
A178: 2004 | B178: 1 | C178: 8 | D178: 8 | E178: 0.003677020945 | F178: 0.0008130772472 | G178: 7.623775529e-05 | H178: 0.0006954234839 | I178: 0.005261759432 | K178: 0.003890632891 | L178: 0.0006079531221 | M178: 4.181202968e-05 | N178: 0.0006807299541 | O178: 0.005221127997
A179: 2004 | B179: 1 | C179: 8 | D179: 9 | E179: 0.003426654631 | F179: 0.0008936788322 | G179: 0 | H179: 0.0007545451744 | I179: 0.005074878637 | K179: 0.003625721857 | L179: 0.0006682204404 | M179: 0 | N179: 0.0007386024685 | O179: 0.005032544766
A180: 2004 | B180: 1 | C180: 8 | D180: 10 | E180: 0.003214197444 | F180: 0.0009573631231 | G180: 0 | H180: 0.0008115847674 | I180: 0.004983145335 | K180: 0.003400922236 | L180: 0.0007158383803 | M180: 0 | N180: 0.000794436878 | O180: 0.004911197494
A181: 2004 | B181: 1 | C181: 8 | D181: 11 | E181: 0.003027112372 | F181: 0.0009605280725 | G181: 0 | H181: 0.0008106258962 | I181: 0.00479826634 | K181: 0.003202968689 | L181: 0.0007182048723 | M181: 0 | N181: 0.0007934982667 | O181: 0.004714671828
A182: 2004 | B182: 1 | C182: 8 | D182: 12 | E182: 0.002914526555 | F182: 0.0009508384198 | G182: 0 | H182: 0.0007729865617 | I182: 0.004638351537 | K182: 0.00308384234 | L182: 0.0007109597372 | M182: 0 | N182: 0.0007566542098 | O182: 0.004551456287
A183: 2004 | B183: 1 | C183: 8 | D183: 13 | E183: 0.002843114339 | F183: 0.0009493827355 | G183: 0 | H183: 0.0007966318114 | I183: 0.004589128886 | K183: 0.00300828152 | L183: 0.0007098712947 | M183: 0 | N183: 0.0007797998614 | O183: 0.004497952676
A184: 2004 | B184: 1 | C184: 8 | D184: 14 | E184: 0.002728259833 | F184: 0.0009558739412 | G184: 0 | H184: 0.0007832340006 | I184: 0.004467367775 | K184: 0.002886754685 | L184: 0.000714724891 | M184: 0 | N184: 0.0007666851316 | O184: 0.004368164708
A185: 2004 | B185: 1 | C185: 8 | D185: 15 | E185: 0.002870348032 | F185: 0.0009279806773 | G185: 0 | H185: 0.0007388690376 | I185: 0.004537197747 | K185: 0.003037097321 | L185: 0.000693868574 | M185: 0 | N185: 0.0007232575512 | O185: 0.004454223446
A186: 2004 | B186: 1 | C186: 8 | D186: 16 | E186: 0.003129564046 | F186: 0.0008949657817 | G186: 0 | H186: 0.0007081456836 | I186: 0.004732675511 | K186: 0.003311372165 | L186: 0.0006691827167 | M186: 0 | N186: 0.0006931833478 | O186: 0.00467373823
A187: 2004 | B187: 1 | C187: 8 | D187: 17 | E187: 0.003720068226 | F187: 0.0009207907463 | G187: 0 | H187: 0.0007537314558 | I187: 0.005394590428 | K187: 0.00393618095 | L187: 0.0006884925275 | M187: 0 | N187: 0.000737805943 | O187: 0.00536247942
A188: 2004 | B188: 1 | C188: 8 | D188: 18 | E188: 0.004356778557 | F188: 0.0008852805751 | G188: 7.905434877e-05 | H188: 0.0007055991502 | I188: 0.006026712631 | K188: 0.004609880173 | L188: 0.0006619409059 | M188: 4.335676942e-05 | N188: 0.0006906906198 | O188: 0.006005868468
A189: 2004 | B189: 1 | C189: 8 | D189: 19 | E189: 0.004632471654 | F189: 0.0007800982698 | G189: 8.4701088e-05 | H189: 0.0004585516289 | I189: 0.005955822641 | K189: 0.004901589317 | L189: 0.0005832941216 | M189: 4.645368154e-05 | N189: 0.0004488629396 | O189: 0.00598020006
A190: 2004 | B190: 1 | C190: 8 | D190: 20 | E190: 0.00460590539 | F190: 0.0007544755612 | G190: 8.4701088e-05 | H190: 0.0004536280883 | I190: 0.005898710128 | K190: 0.004873479719 | L190: 0.0005641355413 | M190: 4.645368154e-05 | N190: 0.000444043428 | O190: 0.00592811237
A191: 2004 | B191: 1 | C191: 8 | D191: 21 | E191: 0.004322638987 | F191: 0.0007822406055 | G191: 8.4701088e-05 | H191: 0.0005788895719 | I191: 0.005768470252 | K191: 0.004573757307 | L191: 0.0005848959862 | M191: 4.645368154e-05 | N191: 0.0005666582749 | O191: 0.00577176525
A192: 2004 | B192: 1 | C192: 8 | D192: 22 | E192: 0.004018032524 | F192: 0.0007694152975 | G192: 8.4701088e-05 | H192: 0.000647852871 | I192: 0.00552000178 | K192: 0.004251455111 | L192: 0.0005753062626 | M192: 4.645368154e-05 | N192: 0.0006341644556 | O192: 0.005507379511
A193: 2004 | B193: 1 | C193: 8 | D193: 23 | E193: 0.003513833577 | F193: 0.000688739352 | G193: 8.4701088e-05 | H193: 0.0005896539099 | I193: 0.004876927927 | K193: 0.003717965356 | L193: 0.0005149833436 | M193: 4.645368154e-05 | N193: 0.0005771951743 | O193: 0.004856597556
A194: 2004 | B194: 1 | C194: 8 | D194: 24 | E194: 0.003052242456 | F194: 0.0006543852887 | G194: 8.4701088e-05 | H194: 0.0006073863259 | I194: 0.004398715158 | K194: 0.003229558674 | L194: 0.0004892961656 | M194: 4.645368154e-05 | N194: 0.000594552924 | O194: 0.004359861445
A195: 2004 | B195: 1 | C195: 9 | D195: 1 | E195: 0.002553794481 | F195: 0.000532341994 | G195: 8.4701088e-05 | H195: 0.0004882526865 | I195: 0.00365909025 | K195: 0.002702153986 | L195: 0.0003980421029 | M195: 4.645368154e-05 | N195: 0.0004779364467 | O195: =SUM(K195:N195) -> 0.003624586217
A196: 2004 | B196: 1 | C196: 9 | D196: 2 | E196: 0.002521070795 | F196: 0.0005048795428 | G196: 8.4701088e-05 | H196: 0.0004754612299 | I196: 0.003586112656 | K196: =E196*R$5 -> 0.002667529258 | L196: =F196*S$5 -> 0.0003775079126 | M196: =G196*T$5 -> 4.645368154e-05 | N196: =H196*V$5 -> 0.0004654152594 | O196: 0.003556906112
A197: 2004 | B197: 1 | C197: 9 | D197: 3 | E197: 0.002565691668 | F197: 0.0004989647112 | G197: 8.4701088e-05 | H197: 0.0004796150111 | I197: 0.003628972478 | K197: 0.002714742325 | L197: 0.0003730852819 | M197: 4.645368154e-05 | N197: 0.0004694812758 | O197: 0.003603762564
A198: 2004 | B198: 1 | C198: 9 | D198: 4 | E198: 0.002664965326 | F198: 0.0004884296035 | G198: 8.4701088e-05 | H198: 0.0004658547176 | I198: 0.003703950735 | K198: 0.002819783163 | L198: 0.0003652079841 | M198: 4.645368154e-05 | N198: 0.0004560117222 | O198: 0.003687456551
A199: 2004 | B199: 1 | C199: 9 | D199: 5 | E199: 0.002839483984 | F199: 0.0004541444713 | G199: 8.4701088e-05 | H199: 0.0003894370873 | I199: 0.003767766631 | K199: 0.003004440265 | L199: 0.0003395723471 | M199: 4.645368154e-05 | N199: 0.000381208712 | O199: 0.003771675005
A200: 2004 | B200: 1 | C200: 9 | D200: 6 | E200: 0.003094354981 | F200: 0.000494262155 | G200: 8.4701088e-05 | H200: 0.000401944042 | I200: 0.004075262266 | K200: 0.003274117674 | L200: 0.0003695690924 | M200: 4.645368154e-05 | N200: 0.0003934514085 | O200: 0.004083591856
... 4297 more rows

Sheet 2006 Input to CA model
A2: Feed into OEB Cost Allocation Model (version 50) sheet "I6 Customer Data", row 27
D3: 1 | E3: 2 | F3: 3 | G3: 4 | H3: 5 | I3: 6 | J3: 7 | K3: 8 | L3: 9 | M3: 10 | N3: 11 | O3: 12 | P3: 13 | Q3: 14 | R3: 15 | S3: 16 | T3: 17 | U3: 18 | V3: 19 | W3: 20
B4: ID | C4: Total | D4: Residential | E4: GS>50kW | F4: Street Lighting | G4: Sentinel Lighting | H4: USL | I4: GS<50kW
A6: kWh - 30 year weather normalized amount | C6: =SUM(D6:I6) -> 468300043.1 | D6: 239658158.5 | E6: 146047497.3 | F6: 5353155.35 | G6: 7299.44 | H6: 534100.97 | I6: 76699831.46 | J6: 0 | K6: 0 | L6: 0 | M6: 0 | N6: 0
A9: Feed into OEB Cost Allocation Model sheet (version 50) "I8 Demand Data", row 40, 45, 50, 55, 61 and 67
D10: 1 | E10: 2 | F10: 3 | G10: 4 | H10: 5 | I10: 6 | J10: 7 | K10: 8 | L10: 9 | M10: 10 | N10: 11 | O10: 12 | P10: 13 | Q10: 14 | R10: 15 | S10: 16 | T10: 17 | U10: 18 | V10: 19 | W10: 20
A11: Customer Classes | C11: Total | D11: Residential | E11: GS>50kW | F11: Street Lighting | G11: Sentinel Lighting | H11: USL | I11: GS<50kW
A13: CO-INCIDENT PEAK (kW)
A15: 1 CP
A16: Total Sytem CP | B16: DCP1 | C16: =SUM(D16:I16) -> 90994.93773 | D16: 52245.53213 | E16: 23590.97199 | F16: 0 | G16: 0 | H16: 60.36563172 | I16: 15098.06798
A18: 4 CP
A19: Total Sytem CP | B19: DCP4 | C19: =SUM(D19:I19) -> 346121.9472 | D19: 205823.4802 | E19: 87757.22632 | F19: 1290.373102 | G19: 1.702346992 | H19: 242.1747483 | I19: 51006.99042
A21: 12 CP
A22: Total Sytem CP | B22: DCP12 | C22: =SUM(D22:I22) -> 873581.3835 | D22: 491011.8213 | E22: 250324.7531 | F22: 5020.072793 | G22: 6.897899372 | H22: 729.1382967 | I22: 126488.7001
A24: NON CO_INCIDENT PEAK (kW)
A26: 1 NCP
A27: Classification NCP from Load Data Provider | B27: DNCP1 | C27: =SUM(D27:I27) -> 104158.7728 | D27: 60081.86622 | E27: 25609.11694 | F27: 1404.96 | G27: 1.865549971 | H27: 78.34950269 | I27: 16982.61458
A29: 4 NCP
A30: Classification NCP from Load Data Provider | B30: DNCP4 | C30: =SUM(D30:I30) -> 390421.2458 | D30: 223469.2014 | E30: 98329.20966 | F30: 5213.623472 | G30: 7.103304655 | H30: 268.4472625 | I30: 63133.66063
A32: 12 NCP
A33: Classification NCP from Load Data Provider | B33: DNCP12 | C33: =SUM(D33:I33) -> 993309.0826 | D33: 529017.034 | E33: 276653.0309 | F33: 14692.13854 | G33: 20.05776325 | H33: 729.1382967 | I33: 172197.6832

Sheet Revised Inputs to CA model
A2: Feed into OEB Cost Allocation Model (version 50) sheet "I6 Customer Data", row 27
B4: ID | C4: Total | D4: ='Hourly load shapes by class'!E2 -> Residential | E4: ='Hourly load shapes by class'!F2 -> GS>50kW | F4: ='Hourly load shapes by class'!G2 -> Street Lighting | G4: ='Hourly load shapes by class'!H2 -> GS<50kW
A6: kWh - 30 year weather normalized amount | C6: =SUM(D6:H6) -> 53699428.28 | D6: ='Hourly load shapes by class'!R4 -> 20643493.56 | E6: ='Hourly load shapes by class'!S4 -> 3483591.09 | F6: 430600.273 | G6: ='Hourly load shapes by class'!V4 -> 29141743.36
A9: Feed into OEB Cost Allocation Model sheet (version 50) "I8 Demand Data", row 40, 45, 50, 55, 61 and 67 | J9: 2015 Demand Data
A11: Customer Classes | C11: Total | D11: ='Hourly load shapes by class'!E2 -> Residential | E11: ='Hourly load shapes by class'!F2 -> GS>50kW | F11: ='Hourly load shapes by class'!G2 -> Street Lighting | G11: ='Hourly load shapes by class'!H2 -> GS<50kW | J11: =D11 -> Residential | K11: =E11 -> GS>50kW | L11: =F11 -> Street Lighting | M11: =G11 -> GS<50kW
A13: CO-INCIDENT PEAK (kW)
A15: 1 CP
A16: Total Sytem CP | B16: DCP1 | C16: =SUM(D16:H16) -> 6764.296248 | D16: ='Hourly load shapes by class'!E8802*1000000 -> 4886.076447 | E16: ='Hourly load shapes by class'!F8802*1000000 -> 975.285387 | F16: ='Hourly load shapes by class'!G8802*1000000 -> 84.701088 | G16: ='Hourly load shapes by class'!H8802*1000000 -> 818.2333259 | J16: ='Hourly load shapes by class'!K8802*1000000 -> 5169.926963 | K16: ='Hourly load shapes by class'!L8802*1000000 -> 729.2391935 | L16: ='Hourly load shapes by class'!M8802*1000000 -> 46.45368154 | M16: ='Hourly load shapes by class'!N8802*1000000 -> 800.9449598
A18: 4 CP
A19: Total Sytem CP | B19: DCP4 | C19: =SUM(D19:H19) -> 25061.8011 | D19: =SUM('Hourly load shapes by class'!E8815:E8818)*1000000 -> 17393.97618 | E19: =SUM('Hourly load shapes by class'!F8815:F8818)*1000000 -> 3887.971767 | F19: =SUM('Hourly load shapes by class'!G8815:G8818)*1000000 -> 285.0911088 | G19: =SUM('Hourly load shapes by class'!H8815:H8818)*1000000 -> 3494.762042 | J19: =SUM('Hourly load shapes by class'!K8815:K8818)*1000000 -> 18404.45753 | K19: =SUM('Hourly load shapes by class'!L8815:L8818)*1000000 -> 2907.109481 | L19: =SUM('Hourly load shapes by class'!M8815:M8818)*1000000 -> 156.3560975 | M19: =SUM('Hourly load shapes by class'!N8815:N8818)*1000000 -> 3420.921581
A21: 12 CP
A22: Total Sytem CP | B22: DCP12 | C22: =SUM(D22:H22) -> 61984.57717 | D22: =SUM('Hourly load shapes by class'!E8802:E8813)*1000000 -> 43664.78924 | E22: =SUM('Hourly load shapes by class'!F8802:F8813)*1000000 -> 8627.516452 | F22: =SUM('Hourly load shapes by class'!G8802:G8813)*1000000 -> 646.8579688 | G22: =SUM('Hourly load shapes by class'!H8802:H8813)*1000000 -> 9045.413504 | J22: =SUM('Hourly load shapes by class'!K8802:K8813)*1000000 -> 46201.44071 | K22: =SUM('Hourly load shapes by class'!L8802:L8813)*1000000 -> 6450.956021 | L22: =SUM('Hourly load shapes by class'!M8802:M8813)*1000000 -> 354.7644404 | M22: =SUM('Hourly load shapes by class'!N8802:N8813)*1000000 -> 8854.293911
A24: NON CO_INCIDENT PEAK (kW)
A26: 1 NCP
A27: Classification NCP from Load Data Provider | B27: DNCP1 | C27: =SUM(D27:H27) -> 7304.648092 | D27: ='Hourly load shapes by class'!E8788*1000000 -> 5017.762516 | E27: ='Hourly load shapes by class'!F8788*1000000 -> 1111.722429 | F27: ='Hourly load shapes by class'!G8788*1000000 -> 84.701088 | G27: ='Hourly load shapes by class'!H8788*1000000 -> 1090.462059 | J27: ='Hourly load shapes by class'!K8788*1000000 -> 5309.263171 | K27: ='Hourly load shapes by class'!L8788*1000000 -> 831.2557311 | L27: ='Hourly load shapes by class'!M8788*1000000 -> 46.45368154 | M27: ='Hourly load shapes by class'!N8788*1000000 -> 1067.4218
A29: 4 NCP
A30: Classification NCP from Load Data Provider | B30: DNCP4 | C30: =SUM(D30:H30) -> 27681.58496 | D30: =(LARGE('Hourly load shapes by class'!E8788:E8799,1)+LARGE('Hourly load shapes by class'!E8788:E8799,2)+LARGE('Hourly load shapes by class'!E8788:E8799,3)+LARGE('Hourly load shapes by class'!E8788:E8799,4))*1000000 -> 18901.97994 | E30: =(LARGE('Hourly load shapes by class'!F8788:F8799,1)+LARGE('Hourly load shapes by class'!F8788:F8799,2)+LARGE('Hourly load shapes by class'!F8788:F8799,3)+LARGE('Hourly load shapes by class'!F8788:F8799,4))*1000000 -> 4284.708606 | F30: =(LARGE('Hourly load shapes by class'!G8788:G8799,1)+LARGE('Hourly load shapes by class'!G8788:G8799,2)+LARGE('Hourly load shapes by class'!G8788:G8799,3)+LARGE('Hourly load shapes by class'!G8788:G8799,4))*1000000 -> 361.6246106 | G30: =(LARGE('Hourly load shapes by class'!H8788:H8799,1)+LARGE('Hourly load shapes by class'!H8788:H8799,2)+LARGE('Hourly load shapes by class'!H8788:H8799,3)+LARGE('Hourly load shapes by class'!H8788:H8799,4))*1000000 -> 4133.271811 | J30: =(LARGE('Hourly load shapes by class'!K8788:K8799,1)+LARGE('Hourly load shapes by class'!K8788:K8799,2)+LARGE('Hourly load shapes by class'!K8788:K8799,3)+LARGE('Hourly load shapes by class'!K8788:K8799,4))*1000000 -> 20000.06688 | K30: =(LARGE('Hourly load shapes by class'!L8788:L8799,1)+LARGE('Hourly load shapes by class'!L8788:L8799,2)+LARGE('Hourly load shapes by class'!L8788:L8799,3)+LARGE('Hourly load shapes by class'!L8788:L8799,4))*1000000 -> 3203.757064 | L30: =(LARGE('Hourly load shapes by class'!M8788:M8799,1)+LARGE('Hourly load shapes by class'!M8788:M8799,2)+LARGE('Hourly load shapes by class'!M8788:M8799,3)+LARGE('Hourly load shapes by class'!M8788:M8799,4))*1000000 -> 198.3303272 | M30: =(LARGE('Hourly load shapes by class'!N8788:N8799,1)+LARGE('Hourly load shapes by class'!N8788:N8799,2)+LARGE('Hourly load shapes by class'!N8788:N8799,3)+LARGE('Hourly load shapes by class'!N8788:N8799,4))*1000000 -> 4045.940345
A32: 12 NCP
A33: Classification NCP from Load Data Provider | B33: DNCP12 | C33: =SUM(D33:H33) -> 67341.05514 | D33: =SUM('Hourly load shapes by class'!E8788:E8799)*1000000 -> 45464.53045 | E33: =SUM('Hourly load shapes by class'!F8788:F8799)*1000000 -> 9872.231383 | F33: =SUM('Hourly load shapes by class'!G8788:G8799)*1000000 -> 996.715624 | G33: =SUM('Hourly load shapes by class'!H8788:H8799)*1000000 -> 11007.57768 | J33: =SUM('Hourly load shapes by class'!K8788:K8799)*1000000 -> 48105.73563 | K33: =SUM('Hourly load shapes by class'!L8788:L8799)*1000000 -> 7381.652742 | L33: =SUM('Hourly load shapes by class'!M8788:M8799)*1000000 -> 546.6412685 | M33: =SUM('Hourly load shapes by class'!N8788:N8799)*1000000 -> 10774.99973
